fUST/lending_fUST_20260325
["ID","MTS","AMOUNT","RATE_DAILY","PERIOD"]
[408884001,1774387843325,-300.0,0.00010403,2]
[408884002,1774387843334,-300.0,0.00010403,2]
[408884003,1774387843344,-300.0,0.00010403,2]
[408884004,1774387843354,-300.0,0.00010403,2]
[408884005,1774387843363,-300.0,0.00010403,2]
[408884006,1774387843373,-300.0,0.00010403,2]
[408884007,1774387843383,-300.0,0.00010403,2]
[408884008,1774387843392,-300.0,0.00010403,2]
[408884010,1774387843402,-300.0,0.00010403,2]
[408884012,1774387843411,-300.0,0.00010403,2]
[408884014,1774387843420,-300.0,0.00010403,2]
[408884016,1774387843429,-300.0,0.00010403,2]
[408884018,1774387843439,-300.0,0.00010403,2]
[408884019,1774387843448,-4673.6775965,0.00011,2]
[408884020,1774387843458,-180.0,0.00011217,2]
[408884021,1774387843467,-500.0,0.00012573,2]
[408884022,1774387843477,-500.0,0.00012573,2]
[408884023,1774387843487,-500.0,0.00012573,2]
[408884024,1774387843496,-500.0,0.00012573,2]
[408884025,1774387843505,-500.0,0.00012573,2]
[408884026,1774387843515,-500.0,0.00012573,2]
[408884027,1774387843524,-500.05039856,0.00012573,2]
[408884028,1774387843533,-500.0,0.00012573,2]
[408884029,1774387843543,-500.0,0.00012582,2]
[408884030,1774387843552,-500.0,0.00012582,2]
[408884031,1774387843561,-500.0,0.00012582,2]
[408884032,1774387843570,-500.0,0.00012582,2]
[408884033,1774387843579,-182.26308884,0.00012582,2]
[408884034,1774387843589,-500.0,0.00012582,2]
[408884035,1774387843598,-500.0,0.00012582,2]
[408884037,1774387843608,-500.0,0.00012582,2]
[408884038,1774387843618,-500.0,0.00012582,2]
[408884040,1774387843627,-500.0,0.00012582,2]
[408884041,1774387843636,-500.0,0.00012582,2]
[408884043,1774387843647,-500.0,0.00012582,2]
[408884045,1774387843656,-500.0,0.00012582,2]
[408884046,1774387843665,-528.00409147,0.00012582,2]
[408884047,1774387843674,-500.0,0.00012582,2]
[408884048,1774387843683,-519.92356097,0.00012582,2]
[408884049,1774387843692,-500.0,0.00012582,2]
[408884050,1774387843701,-500.0,0.00012582,2]
[408884051,1774387843710,-500.0,0.00012582,2]
[408884052,1774387843719,-500.0,0.00012582,2]
[408884053,1774387843729,-500.0,0.00012582,2]
[408884054,1774387843739,-500.0,0.00012582,2]
[408884055,1774387843748,-500.0,0.00012582,2]
[408884056,1774387843757,-500.0,0.00012582,2]
[408884057,1774387843767,-500.0,0.00012582,2]
[408884058,1774387843777,-500.0,0.00012582,2]
[408884059,1774387843790,-500.0,0.00012582,2]
[408884060,1774387843800,-500.0,0.00012582,2]
[408884061,1774387843809,-457.80765643,0.00012582,2]
[408884062,1774387843818,-500.0,0.00012582,2]
[408884063,1774387843827,-500.0,0.00012582,2]
[408884064,1774387843836,-500.0,0.00012582,2]
[408884065,1774387843845,-500.0,0.00012582,2]
[408884066,1774387843855,-500.0,0.00012582,2]
[408884067,1774387843865,-500.0,0.00012582,2]
[408884068,1774387843874,-426.15151615,0.00012582,2]
[408884069,1774387843883,-500.0,0.00012582,2]
[408884070,1774387843892,-223.83971055,0.00012582,2]
[408884071,1774387843902,-500.0,0.00012582,2]
[408884072,1774387843911,-500.0,0.00012582,2]
[408884073,1774387843921,-500.0,0.00012582,2]
[408884074,1774387843930,-200.0,0.00012582,2]
[408884075,1774387843940,-500.0,0.00012582,2]
[408884076,1774387843949,-126076.95209495,0.00012583,2]
[408884077,1774387843962,-19751.12878883,0.00012583,2]
[408884078,1774387843973,-31493.68091032,0.00012583,2]
[408884079,1774387843984,-10160.322468,0.00012583,2]
[408884080,1774387843996,-1063.22833613,0.00012583,2]
[408884100,1774387846125,-6290.123113,0.00012583,2]
[408884104,1774387846257,-383831.69987332,0.00012583,2]
[408884105,1774387846319,-3416.63931042,0.00012583,2]
[408884106,1774387846331,-24240.68112634,0.00012583,2]
[408884107,1774387911562,2000.0,0.00011905,2]
[408884108,1774387912110,617.27350964,0.00011805,2]
[408884157,1774389032043,-5000.0,0.00011009,2]
[408884159,1774389032053,-5291.7555566,0.00011576,2]
[408884161,1774389032064,-1000.0,0.00011576,2]
[408884166,1774389032103,-9088.6180434,0.00011576,2]
[408884168,1774389032112,-163.89823823,0.000116,2]
[408884170,1774389032121,-186.82914009,0.000116,2]
[408884172,1774389032131,-191.78075348,0.000116,2]
[408884174,1774389032140,-194.50997752,0.000116,2]
[408884176,1774389032149,-161.97862849,0.00011705,2]
[408884178,1774389032158,-644.7160834,0.00011705,2]
[408884180,1774389032167,-524.87107895,0.00011705,2]
[408884182,1774389032176,-12752.79805644,0.00011706,2]
[408884436,1774389038268,-352.005,0.00011589,2]
[408884439,1774389038278,-1573.81203556,0.00011706,2]
[408884441,1774389038289,-406.04,0.00011706,2]
[408884827,1774389043352,-6650.25,0.00011706,2]
[408884899,1774389046348,-6760.13494021,0.00011706,2]
[408884905,1774389700775,-2060.51672853,0.00011243,2]
[408884981,1774390232226,-1200.0,0.00010497,2]
[408884983,1774390232235,-5000.0,0.00010498,2]
[408884985,1774390232244,-567.0,0.00010498,2]
[408884987,1774390232253,-159.025432,0.00010604,2]
[408884989,1774390232263,-189.2489175,0.00011177,2]
[408884991,1774390232271,-300.0,0.00011498,2]
[408884993,1774390232281,-300.0,0.00011498,2]
[408884995,1774390232291,-300.0,0.00011498,2]
[408884997,1774390232300,-300.0,0.00011498,2]
[408884999,1774390232308,-151.0,0.00011499,2]
[408885001,1774390232318,-251.83574065,0.00011499,2]
[408885003,1774390232327,-151.0,0.00011499,2]
[408885005,1774390232336,-151.0,0.00011499,2]
[408885007,1774390232345,-151.0,0.00011499,2]
[408885009,1774390232354,-151.0,0.00011499,2]
[408885011,1774390232363,-151.0,0.00011499,2]
[408885013,1774390232372,-151.0,0.00011499,2]
[408885015,1774390232381,-151.0,0.00011499,2]
[408885017,1774390232392,-151.0,0.00011499,2]
[408885019,1774390232401,-151.0,0.00011499,2]
[408885021,1774390232411,-151.0,0.00011499,2]
[408885023,1774390232421,-151.0,0.00011499,2]
[408885025,1774390232430,-151.0,0.00011499,2]
[408885027,1774390232439,-151.0,0.00011499,2]
[408885029,1774390232448,-151.0,0.00011499,2]
[408885031,1774390232458,-151.0,0.00011499,2]
[408885033,1774390232467,-151.0,0.00011499,2]
[408885035,1774390232476,-151.0,0.00011499,2]
[408885037,1774390232486,-151.0,0.00011499,2]
[408885039,1774390232496,-151.0,0.00011499,2]
[408885041,1774390232505,-18462.11053372,0.00011499,2]
[408885458,1774390238345,-7003.196529,0.00011499,2]
[408885460,1774390238356,-24534.69293728,0.00011499,2]
[408885462,1774390238366,-500.0,0.00011505,2]
[408885464,1774390238375,-1680.0,0.00011547,2]
[408885466,1774390238386,-1442.39086967,0.00011565,2]
[408885468,1774390238395,-500.0,0.00011573,2]
[408885470,1774390238404,-500.0,0.00011573,2]
[408885472,1774390238413,-502.46610768,0.00011573,2]
[408885474,1774390238422,-500.0,0.00011573,2]
[408885476,1774390238432,-266.37027838,0.00011573,2]
[408885478,1774390238441,-500.0,0.00011573,2]
[408885480,1774390238450,-3135.04093728,0.000116,2]
[408885482,1774390238459,-3466.63702668,0.000116,2]
[408885484,1774390238469,-500.0,0.00011806,2]
[408885486,1774390238478,-500.0,0.00011806,2]
[408885488,1774390238486,-500.0,0.00011806,2]
[408885490,1774390238495,-500.0,0.00011806,2]
[408885492,1774390238504,-500.0,0.00011806,2]
[408885494,1774390238513,-500.0,0.00011806,2]
[408885496,1774390238521,-500.0,0.00011806,2]
[408885497,1774390238531,-286.09853639,0.00011806,2]
[408885499,1774390238540,-500.0,0.00011806,2]
[408885501,1774390238549,-500.0,0.00011806,2]
[408885503,1774390238558,-78.59452561,0.00011806,2]
[408885505,1774390238573,-421.40547439,0.00011806,2]
[408885507,1774390238583,-500.0,0.00011806,2]
[408885509,1774390238591,-500.0,0.00011806,2]
[408885511,1774390238600,-500.0,0.00011806,2]
[408885513,1774390238610,-500.0,0.00011806,2]
[408885515,1774390238619,-500.0,0.00011806,2]
[408885516,1774390238627,-500.0,0.00011806,2]
[408885517,1774390238636,-434.1046862,0.00011806,2]
[408885518,1774390238644,-500.0,0.00011806,2]
[408885519,1774390238653,-500.0,0.00011806,2]
[408885520,1774390238662,-378.64361281,0.00011806,2]
[408885521,1774390238671,-500.0,0.00011806,2]
[408885522,1774390238679,-300.0,0.00011807,2]
[408885523,1774390238688,-300.0,0.00011807,2]
[408885524,1774390238697,-300.0,0.00011807,2]
[408885525,1774390238706,-300.0,0.00011807,2]
[408885526,1774390238714,-300.0,0.00011807,2]
[408885527,1774390238724,-300.0,0.00011807,2]
[408885528,1774390238732,-300.0,0.00011807,2]
[408885530,1774390238741,-300.0,0.00011807,2]
[408885532,1774390238751,-300.0,0.00011807,2]
[408885534,1774390238759,-300.0,0.00011807,2]
[408885536,1774390238769,-300.0,0.00011807,2]
[408885538,1774390238778,-300.0,0.00011807,2]
[408885540,1774390238787,-300.0,0.00011807,2]
[408885542,1774390238798,-300.0,0.00011807,2]
[408885544,1774390238806,-300.0,0.00011807,2]
[408885546,1774390238815,-500.0,0.00011807,2]
[408885548,1774390238824,-322.07268366,0.00011832,2]
[408885550,1774390238833,-466.46243092,0.00011856,2]
[408885552,1774390238843,-500.0,0.00011856,2]
[408885554,1774390238852,-500.0,0.0001201,2]
[408885556,1774390238861,-500.0,0.0001201,2]
[408885558,1774390238870,-500.0,0.0001201,2]
[408885559,1774390238880,-543.16281555,0.0001201,2]
[408885561,1774390238889,-500.0,0.0001201,2]
[408885563,1774390238900,-500.0,0.00012081,2]
[408885565,1774390238910,-247.7611136,0.00012094,2]
[408885567,1774390238919,-283.1555584,0.00012094,2]
[408885569,1774390238928,-365.0277092,0.00012121,2]
[408885570,1774390238940,-500.0,0.00012121,2]
[408885571,1774390238950,-500.0,0.00012355,2]
[408885573,1774390238959,-820.875,0.00012508,2]
[408885575,1774390238968,-500.0,0.00012558,2]
[408885576,1774390238979,-357.08753717,0.00012558,2]
[408885577,1774390238988,-500.0,0.00012558,2]
[408885578,1774390238997,-500.0,0.00012583,2]
[408885579,1774390239007,-420.0,0.00012629,2]
[408885580,1774390239017,-420.0,0.00012629,2]
[408885581,1774390239027,-420.0,0.00012629,2]
[408885582,1774390239038,-301.0,0.00012629,2]
[408885583,1774390239049,-500.0,0.00012629,2]
[408885584,1774390239058,-497.55254739,0.00012633,2]
[408885585,1774390239068,-467.10955947,0.00012633,2]
[408885586,1774390239077,-537.68450002,0.00012633,2]
[408885587,1774390239088,-2150.738,0.00012633,2]
[408885588,1774390239098,-98.2658025,0.00012715,2]
[408885589,1774390239110,-344.1647575,0.00012715,2]
[408885590,1774390239119,-600.0,0.00012731,2]
[408885591,1774390239129,-500.0,0.00012732,2]
[408885592,1774390239138,-195.40261,0.0001282,2]
[408885593,1774390239148,-343.15750581,0.000129,2]
[408885634,1774390240844,-988.98056299,0.000129,2]
[408885636,1774390240853,-500.0,0.00012903,2]
[408885638,1774390240863,-500.0,0.00012983,2]
[408885640,1774390240872,-500.0,0.00012983,2]
[408885642,1774390240883,-500.0,0.00013177,2]
[408885644,1774390240894,-2230.315306,0.00013181,2]
[408885646,1774390240904,-500.0,0.00013451,2]
[408885648,1774390240914,-156.0,0.00013699,2]
[408885650,1774390240923,-1000.0,0.00013699,2]
[408885652,1774390240936,-1000.0,0.00013699,2]
[408885654,1774390240949,-500.0,0.00013725,2]
[408885655,1774390240958,-691.86178534,0.00013729,2]
[408885658,1774390240969,-389.9284953,0.00013729,2]
[408885734,1774390243668,-1231.04669168,0.00013729,2]
[408885735,1774390243678,-10000.0,0.00013806,2]
[408885736,1774390243687,-303.0,0.00013871,2]
[408885737,1774390243696,-300.0,0.00013871,2]
[408885738,1774390243705,-439.0,0.00013952,2]
[408885739,1774390243714,-735.0,0.00013952,2]
[408885740,1774390243723,-184.0,0.00013952,2]
[408885742,1774390243733,-1332.13806879,0.00013976,2]
[408885743,1774390243741,-500.0,0.00013999,2]
[408885744,1774390243751,-720.0,0.00014005,2]
[408885745,1774390243759,-636.46290639,0.00014116,2]
[408885747,1774390243768,-195.40261,0.00014169,2]
[408885748,1774390243778,-1138.814,0.00014217,2]
[408885749,1774390243787,-2398.4119403,0.00014277,2]
[408885750,1774390243797,-500.0,0.00014655,2]
[408885751,1774390243807,-1125.63559062,0.00014667,2]
[408885752,1774390243815,-1505.23238089,0.00014825,2]
[408885760,1774390246564,-5000.0,0.00013592,2]
[408885762,1774390246574,-981.9208012,0.00014825,2]
[408885763,1774390246583,-181.045396,0.00015068,2]
[408885764,1774390246592,-2117.30422157,0.00015367,4]
[408885765,1774390246603,-2344.12107354,0.00015367,4]
[408885766,1774390246612,-2579.17784983,0.00015373,2]
[408885767,1774390246621,-500.0,0.00015402,2]
[408885768,1774390246630,-864.0,0.00015405,2]
[408885769,1774390246639,-500.0,0.00015488,2]
[408885770,1774390246649,-195.40261,0.00015518,2]
[408885771,1774390246658,-2674.60743027,0.00015921,2]
[408885772,1774390246667,-500.0,0.00016007,2]
[408885773,1774390246676,-160.0,0.0001616,2]
[408885774,1774390246685,-196.17500001,0.000162,2]
[408885775,1774390246694,-1332.13806879,0.00016546,2]
[408885776,1774390246703,-5000.0,0.00016811,2]
[408885777,1774390246712,-5000.0,0.00016811,2]
[408885778,1774390246722,-5000.0,0.00016811,2]
[408885779,1774390246731,-5000.0,0.00016811,2]
[408885780,1774390246740,-2726.80483598,0.00016811,2]
[408885837,1774391438646,-5000.0,0.00012897,2]
[408885839,1774391438655,-1000.0,0.00013699,2]
[408885840,1774391438664,-1200.0,0.00013986,2]
[408885842,1774391438674,-300.0,0.00013987,2]
[408885844,1774391438683,-300.0,0.00013987,2]
[408885846,1774391438692,-300.0,0.00013988,2]
[408885848,1774391438700,-6302.1383742,0.00013989,2]
[408885850,1774391438710,-500.0,0.00014196,2]
[408885851,1774391438719,-500.0,0.00014304,2]
[408885852,1774391438728,-853.29459028,0.00014308,2]
[408885853,1774391438737,-500.0,0.00014407,2]
[408885854,1774391438746,-500.0,0.00014407,2]
[408885855,1774391438755,-500.0,0.00014407,2]
[408885856,1774391438763,-327.58416219,0.00014407,2]
[408885857,1774391438772,-559.60286403,0.00014407,2]
[408885858,1774391438781,-500.0,0.00014407,2]
[408885859,1774391438791,-500.0,0.00014407,2]
[408885860,1774391438800,-500.0,0.00014407,2]
[408885861,1774391438809,-500.0,0.00014407,2]
[408885862,1774391438818,-603.78940958,0.00014407,2]
[408885863,1774391438828,-420.67761515,0.00014407,2]
[408885864,1774391438837,-500.0,0.00014407,2]
[408885865,1774391438847,-500.0,0.00014407,2]
[408885866,1774391438856,-500.0,0.00014407,2]
[408885867,1774391438865,-3926.48384914,0.00014408,2]
[408885868,1774391438876,-111989.70883058,0.00014408,2]
[408885919,1774391441119,-530.49760276,0.00014408,2]
[408886203,1774391443763,-5000.0,0.00014264,2]
[408886205,1774391443772,-17520.34591093,0.00014408,2]
[408886207,1774391443782,-3871.1214413,0.00014408,2]
[408886212,1774391443823,-28572.11232014,0.00014408,2]
[408886450,1774391446735,-368.1946,0.00014408,2]
[408886451,1774391446747,-2213.92499483,0.00014408,2]
[408886454,1774391446832,-8060.83831112,0.00014408,2]
[408886455,1774391446843,-3008.28133464,0.00014408,2]
[408886456,1774391446854,-6666.76772114,0.00014408,2]
[408886457,1774391446865,-13353.9040743,0.00014408,2]
[408886458,1774391446900,-19427.52454623,0.00014408,2]
[408886485,1774391489507,2000.0,9.905e-05,2]
[408886486,1774391490076,198.63527632,9.805e-05,2]
[408886729,1774392637711,-5000.0,0.0001178,2]
[408886730,1774392637721,-782.76380562,0.00012362,2]
[408886731,1774392637730,-1494.50552166,0.00012462,2]
[408886732,1774392637740,-189.0,0.00012514,2]
[408886733,1774392637751,-1200.0,0.00012661,2]
[408886734,1774392637761,-2506.54817009,0.00012662,2]
[408886735,1774392637772,-2917.98895373,0.00012762,2]
[408886736,1774392637785,-3629.73066977,0.00013062,2]
[408886737,1774392637795,-53055.04366657,0.00013414,2]
[408887017,1774392642847,-586.64428478,0.00013414,2]
[408887019,1774392642860,-180719.8513475,0.00013414,2]
[408887021,1774392642869,-11432.40338519,0.00013414,2]
[408887023,1774392642880,-2803.53049772,0.00013414,2]
[408887237,1774392645793,-70813.81364498,0.00013414,2]
[408887258,1774393079279,10000.0,7.6e-05,120]
[408887270,1774393281190,-427.39550016,9.801e-05,2]
[408887306,1774393831739,-1343.7500641,9.606e-05,2]
[408887307,1774393831752,-1163.20743793,9.606e-05,2]
[408887308,1774393831815,-776.4380548,9.606e-05,2]
[408887309,1774393831830,-619.55233372,9.606e-05,2]
[408887315,1774393837877,-440.5254009,9.606e-05,2]
[408887907,1774393846022,-656.52670855,9.606e-05,2]
[408887910,1774393846033,-217.6275617,0.0001,2]
[408887912,1774393846043,-217.6275617,0.00011058,2]
[408887914,1774393846054,-217.6275617,0.00012116,7]
[408887916,1774393846064,-914.11665141,0.00012801,2]
[408888095,1774395032128,-1748.84541861,9.801e-05,2]
[408888098,1774395032141,-100.15458139,9.801e-05,2]
[408888100,1774395032150,-287.87122109,9.899e-05,2]
[408888259,1774395038081,-912.12877891,9.899e-05,2]
[408888260,1774395038091,-5000.0,9.9e-05,2]
[408888262,1774395038101,-559.0,9.9e-05,2]
[408888264,1774395038111,-603.53049772,0.0001,2]
[408888266,1774395038119,-160.566907,0.00011033,2]
[408888267,1774395038128,-1880.5752812,0.0001167,2]
[408888269,1774395038138,-300.0,0.00011769,2]
[408888271,1774395038148,-4009.58335527,0.0001177,2]
[408888272,1774395038157,-4449.17605721,0.0001187,2]
[408888273,1774395038166,-4578.15854668,0.0001197,2]
[408888274,1774395038175,-4888.76875924,0.0001207,2]
[408888275,1774395038186,-5328.36146127,0.0001217,2]
[408888276,1774395038195,-50000.0,0.0001217,2]
[408888277,1774395038205,-500.0,0.00012799,2]
[408888278,1774395038214,-500.0,0.00012799,2]
[408888279,1774395038223,-500.0,0.00012799,2]
[408888280,1774395038233,-500.0,0.00012799,2]
[408888281,1774395038242,-215.91646739,0.00012799,2]
[408888283,1774395038251,-323.72141682,0.00012799,2]
[408888285,1774395038260,-500.0,0.00012799,2]
[408888286,1774395038269,-500.0,0.00012799,2]
[408888287,1774395038278,-500.0,0.00012799,2]
[408888288,1774395038288,-500.0,0.00012799,2]
[408888289,1774395038297,-500.0,0.00012799,2]
[408888290,1774395038307,-500.0,0.00012799,2]
[408888291,1774395038316,-189.55313685,0.00012799,2]
[408888292,1774395038325,-500.0,0.00012799,2]
[408888293,1774395038335,-500.0,0.00012799,2]
[408888294,1774395038344,-500.0,0.00012799,2]
[408888295,1774395038353,-500.0,0.00012799,2]
[408888296,1774395038362,-159.39279322,0.00012799,2]
[408888297,1774395038371,-500.0,0.00012799,2]
[408888298,1774395038380,-500.0,0.00012799,2]
[408888299,1774395038389,-500.0,0.00012799,2]
[408888300,1774395038399,-500.0,0.00012799,2]
[408888301,1774395038408,-6111.26328299,0.00012801,2]
[408888872,1774395046140,-500.0,0.00012673,2]
[408888873,1774395046152,-3703.95148248,0.00012673,2]
[408888928,1774396232071,-252.23478002,0.00010615,2]
[408888931,1774396232083,-101.77021998,0.00010615,2]
[408888933,1774396232093,-830.03527875,0.00010722,2]
[408889170,1774396240880,-2372.51629719,0.00010722,2]
[408889684,1774396246163,-1797.44842406,0.00010722,2]
[408889685,1774396246172,-2408.0422381,0.00011953,2]
[408889687,1774396246181,-190.2569325,0.00011975,2]
[408889689,1774396246190,-185.736,0.00012543,2]
[408889690,1774396246199,-694.643,0.00012543,2]
[408889692,1774396246208,-579.30891353,0.00012598,2]
[408889694,1774396246217,-500.0,0.00012598,2]
[408889696,1774396246227,-500.0,0.00012598,2]
[408889698,1774396246240,-541.72200482,0.00012598,2]
[408889699,1774396246249,-500.0,0.00012598,2]
[408889701,1774396246258,-500.0,0.00012598,2]
[408889703,1774396246267,-500.0,0.00012598,2]
[408889705,1774396246276,-500.0,0.00012598,2]
[408889706,1774396246286,-144.42186132,0.00012599,2]
[408889708,1774396246297,-2836.07477566,0.00012599,2]
[408889710,1774396246312,-14542.07495703,0.00012599,2]
[408889714,1774396246353,-24368.94900374,0.00012599,2]
[408889734,1774396246590,-1739.089,0.00012599,2]
[408889894,1774396862243,-350.42050866,7.375e-05,2]
[408889895,1774396862263,-350.42050866,7.449e-05,2]
[408889896,1774396862274,-3160.51784623,7.449e-05,2]
[408889980,1774397231126,-5000.0,7.156e-05,2]
[408889981,1774397231171,-1513.79998487,7.228e-05,2]
[408889982,1774397231204,-293.4000677,7.6e-05,2]
[408889983,1774397231253,-1200.0,9.794e-05,2]
[408889984,1774397231287,-297.41522835,9.795e-05,2]
[408889985,1774397231324,-557.0,9.795e-05,2]
[408889986,1774397231367,-300.0,0.00010772,2]
[408889987,1774397231418,-1470.0,0.00010773,2]
[408889988,1774397231470,-300.0,0.00010881,2]
[408889989,1774397231523,-555.714,0.00012248,2]
[408889990,1774397231580,-153.67636131,0.000123,2]
[408889991,1774397231618,-159.81155439,0.000123,2]
[408889992,1774397231679,-161.77703669,0.000123,2]
[408889993,1774397231720,-161.1296748,0.000123,2]
[408889994,1774397231765,-348.24818541,0.00012309,2]
[408889995,1774397231804,-500.0,0.00012373,2]
[408889996,1774397231841,-500.37429636,0.00012373,2]
[408889997,1774397231888,-570.71820924,0.00012397,2]
[408889998,1774397231932,-500.0,0.00012397,2]
[408889999,1774397231965,-500.0,0.00012397,2]
[408890000,1774397232007,-500.0,0.00012397,2]
[408890001,1774397232042,-500.0,0.00012397,2]
[408890002,1774397232105,-333.77022276,0.00012397,2]
[408890003,1774397232181,-500.0,0.00012397,2]
[408890004,1774397232233,-500.0,0.00012397,2]
[408890005,1774397232274,-499.99999999,0.00012397,2]
[408890006,1774397232318,-500.0,0.00012397,2]
[408890007,1774397232370,-500.0,0.00012397,2]
[408890008,1774397232413,-500.0,0.00012397,2]
[408890009,1774397232464,-500.0,0.00012397,2]
[408890010,1774397232518,-225.79029472,0.00012397,2]
[408890011,1774397232609,-192.47203115,0.00012397,2]
[408890012,1774397232659,-500.0,0.00012397,2]
[408890013,1774397232703,-500.0,0.00012397,2]
[408890014,1774397232736,-506.77386902,0.00012397,2]
[408890015,1774397232767,-500.0,0.00012397,2]
[408890016,1774397232949,-500.0,0.00012397,2]
[408890017,1774397232996,-500.0,0.00012397,2]
[408890018,1774397233089,-500.0,0.00012397,2]
[408890019,1774397233181,-500.0,0.00012397,2]
[408890020,1774397233235,-175698.12898324,0.00012398,2]
[408890054,1774397432721,-591.0,0.00012149,2]
[408890055,1774397432731,-966.53880659,0.00012149,2]
[408890056,1774397432740,-5004.59706597,0.00012241,2]
[408890057,1774397432749,-119.014635,0.00012249,2]
[408890058,1774397432760,-1297.01723482,0.00012249,2]
[408890059,1774397432772,-2966.91,0.00012249,2]
[408890068,1774397438884,-617.05813018,0.00012249,2]
[408890069,1774397438893,-300.0,0.00012372,2]
[408890070,1774397438903,-300.0,0.00012372,2]
[408890071,1774397438913,-300.0,0.00012372,2]
[408890072,1774397438924,-300.0,0.00012372,2]
[408890073,1774397438933,-300.0,0.00012372,2]
[408890074,1774397438942,-500.49925032,0.00012373,2]
[408890075,1774397438951,-500.0,0.00012373,2]
[408890076,1774397438960,-500.0,0.00012373,2]
[408890077,1774397438969,-500.42502748,0.00012373,2]
[408890078,1774397438979,-500.0,0.00012373,2]
[408890079,1774397438987,-500.0,0.00012373,2]
[408890080,1774397438997,-200.0,0.00012373,2]
[408890081,1774397439006,-500.0,0.00012373,2]
[408890082,1774397439015,-500.0,0.00012373,2]
[408890083,1774397439024,-500.0,0.00012373,2]
[408890084,1774397439032,-270.85929981,0.00012373,2]
[408890085,1774397439041,-234.17271144,0.00012373,2]
[408890086,1774397439050,-500.47750466,0.00012373,2]
[408890087,1774397439059,-331.71838217,0.00012373,2]
[408890088,1774397439067,-263.45676185,0.00012373,2]
[408890089,1774397439076,-500.0,0.00012373,2]
[408890090,1774397439085,-500.0,0.00012373,2]
[408890091,1774397439094,-7820.01137551,0.00012373,2]
[408890092,1774397439106,-527.18973794,0.00012373,2]
[408890110,1774397441166,-5000.0,0.00012249,2]
[408890112,1774397441175,-6599.12067499,0.00012373,2]
[408890551,1774397446688,-4717.07435341,0.00012373,2]
[408890552,1774397446748,-30336.60385815,0.00012373,2]
[408890553,1774397446758,-65531.83121809,0.00012398,2]
[408890554,1774397446769,-1992.05983524,0.00012398,2]
[408890569,1774397447879,-499.48143251,0.00012398,2]
[408890570,1774397447891,-806.99127554,0.00012398,2]
[408890710,1774398631552,-5000.0,0.00010244,2]
[408890712,1774398631562,-276.38891717,0.00010347,2]
[408890714,1774398631571,-565.0,0.00010347,2]
[408890716,1774398631581,-300.0,0.00010958,2]
[408890718,1774398631591,-1200.0,0.00010958,2]
[408890720,1774398631599,-1555.01108283,0.00010959,2]
[408890723,1774398631615,-415.5682228,0.00010959,2]
[408890746,1774398638108,-1000.0,0.00010849,2]
[408891313,1774398645655,-4000.0,0.00010849,2]
[408891315,1774398645665,-13409.79429437,0.00010959,2]
[408891317,1774398645674,-444.571,0.00011327,2]
[408891319,1774398645683,-24092.4091988,0.00011329,2]
[408891321,1774398645692,-397.59992826,0.00011965,2]
[408891323,1774398645701,-6450.68011761,0.00012,2]
[408891325,1774398645711,-302891.53817408,0.00012,2]
[408891327,1774398645722,-110020.80367868,0.00012,2]
[408891329,1774398645733,-12016.39653973,0.00012,2]
[408891405,1774398646469,-9330.96986409,0.00012,2]
[408891431,1774398700526,-169.645659,0.00011161,2]
[408891432,1774398700586,-1587.67130589,0.0001188,2]
[408891518,1774399831695,-5000.0,7.084e-05,2]
[408891520,1774399831705,-350.42050866,7.156e-05,2]
[408891522,1774399831714,-670.78053703,7.6e-05,2]
[408891524,1774399831723,-1200.0,0.00010985,2]
[408891526,1774399831732,-1606.077633,0.00010986,2]
[408891528,1774399831741,-151.0106085,0.00011293,2]